bitfinex/quotes_BTCUSD_20251208
["timestamp","ask_amount","ask_price","bid_price","bid_amount"]
[1765164061808,0.0002346,91330.0,91329.0,0.35115508]
[1765164062188,0.0002346,91330.0,91329.0,0.37334708]
[1765164063222,0.0002346,91330.0,91329.0,0.38034708]
[1765164063580,0.0002346,91330.0,91329.0,0.76587007]
[1765164064401,0.0002346,91330.0,91329.0,0.76987007]
[1765164064713,0.0002346,91330.0,91329.0,1.85172807]
[1765164064918,0.0002346,91330.0,91329.0,1.92599807]
[1765164065136,0.0002346,91330.0,91329.0,1.85372807]
[1765164065343,0.0012346,91330.0,91329.0,1.85372807]
[1765164065857,0.0002346,91330.0,91329.0,1.86072807]
[1765164066091,0.0012346,91330.0,91329.0,1.67311607]
[1765164066274,0.0012346,91330.0,91329.0,1.66011607]
[1765164066619,0.0012346,91330.0,91329.0,1.58717007]
[1765164066816,0.0012346,91330.0,91329.0,1.48294107]
[1765164067070,0.0012346,91330.0,91329.0,1.23166707]
[1765164067272,0.0012346,91330.0,91329.0,1.05681707]
[1765164068372,0.0012346,91330.0,91329.0,0.92056407]
[1765164068752,0.0012346,91330.0,91329.0,0.90914707]
[1765164071357,0.0012346,91330.0,91329.0,0.98719709]
[1765164072153,0.0012346,91330.0,91329.0,0.90914707]
[1765164072362,1.00818112,91331.0,91330.0,0.44631499]
[1765164072363,0.07952889,91331.0,91330.0,0.44631499]
[1765164072560,1e-08,91331.0,91330.0,2.44999505]
[1765164072985,1e-08,91331.0,91330.0,2.45069638]
[1765164073230,0.0004,91360.0,91349.0,2.40771499]
[1765164073436,0.0004,91360.0,91349.0,2.4404222]
[1765164073597,0.0004,91360.0,91349.0,2.4637122]
[1765164073779,0.0004,91360.0,91349.0,2.48451543]
[1765164074631,0.0004,91360.0,91349.0,2.49151543]
[1765164075887,0.0004,91360.0,91349.0,2.51051543]
[1765164080631,0.0004,91360.0,91349.0,1.27557343]
[1765164080829,0.0004,91360.0,91349.0,1.24707243]
[1765164080988,0.00078633,91350.0,91349.0,1.24707243]
[1765164081527,0.00078633,91350.0,91349.0,1.22807243]
[1765164081939,0.00078633,91350.0,91349.0,1.24507243]
[1765164082091,0.00078633,91350.0,91349.0,0.61288043]
[1765164082476,0.00078633,91350.0,91349.0,0.60588043]
[1765164082915,0.00078633,91350.0,91349.0,0.61188043]
[1765164083129,0.00078633,91350.0,91349.0,0.59488043]
[1765164083331,0.00078633,91350.0,91349.0,0.58888043]
[1765164083530,0.00078633,91350.0,91349.0,0.61524055]
[1765164083774,0.00078633,91350.0,91349.0,0.62224055]
[1765164083995,0.00078633,91350.0,91349.0,0.61488043]
[1765164084375,0.00078633,91350.0,91349.0,0.60788043]
[1765164084586,0.00078633,91350.0,91349.0,0.58888043]
[1765164084987,0.00078633,91350.0,91349.0,0.61188043]
[1765164085424,0.00078633,91350.0,91349.0,0.58888043]
[1765164085847,0.00178633,91350.0,91349.0,0.59788043]
[1765164086064,0.00178633,91350.0,91349.0,0.61688043]
[1765164086283,0.00078633,91350.0,91349.0,0.58888043]
[1765164086492,0.00078633,91350.0,91349.0,0.59488043]
[1765164086654,0.00078633,91350.0,91349.0,0.60988043]
[1765164092360,0.00078633,91350.0,91349.0,0.58888043]
[1765164092534,0.00078633,91350.0,91349.0,0.59688043]
[1765164092734,0.00078633,91350.0,91349.0,0.61688043]
[1765164092934,0.00078633,91350.0,91349.0,0.59688043]
[1765164093252,0.00078633,91350.0,91349.0,0.58888043]
[1765164093438,0.00178633,91350.0,91349.0,0.62388043]
[1765164094153,0.00078633,91350.0,91349.0,0.61388043]
[1765164094779,0.00078633,91350.0,91349.0,0.58888043]
[1765164095176,0.00078633,91350.0,91349.0,0.61088043]
[1765164095380,0.00078633,91350.0,91349.0,0.59488043]
[1765164095773,1e-08,91350.0,91349.0,0.61388043]
[1765164095974,1e-08,91350.0,91349.0,0.71191252]
[1765164096196,1e-08,91350.0,91349.0,0.71891252]
[1765164096758,1e-08,91350.0,91349.0,0.62088043]
[1765164098315,1e-08,91350.0,91349.0,0.61388043]
[1765164098514,1e-08,91350.0,91349.0,0.59588043]
[1765164098787,1e-08,91350.0,91349.0,0.61788043]
[1765164102807,1e-08,91350.0,91349.0,0.55535744]
[1765164102983,1e-08,91350.0,91349.0,0.61788043]
[1765164103736,1e-08,91350.0,91349.0,0.29488043]
[1765164103931,1e-08,91350.0,91349.0,0.29049927]
[1765164104307,1e-08,91350.0,91349.0,0.60649927]
[1765164104509,1e-08,91350.0,91349.0,0.58449927]
[1765164104717,1e-08,91350.0,91349.0,0.58749927]
[1765164104919,1e-08,91350.0,91349.0,0.59949927]
[1765164105127,1e-08,91350.0,91349.0,0.58449927]
[1765164105529,1e-08,91350.0,91349.0,0.59649927]
[1765164105936,1e-08,91350.0,91349.0,0.59949927]
[1765164107427,1e-08,91350.0,91349.0,0.58221927]
[1765164107625,1e-08,91350.0,91349.0,0.59949927]
[1765164107808,1e-08,91350.0,91349.0,0.39890921]
[1765164108011,1e-08,91350.0,91349.0,0.41618921]
[1765164108435,1e-08,91350.0,91349.0,0.52067921]
[1765164108642,1e-08,91350.0,91349.0,0.51767921]
[1765164108885,1e-08,91350.0,91349.0,0.41761128]
[1765164109076,1e-08,91350.0,91349.0,0.42761128]
[1765164113345,1e-08,91350.0,91349.0,0.49013427]
[1765164114739,1e-08,91350.0,91349.0,0.64077027]
[1765164115767,1e-08,91350.0,91349.0,0.60132427]
[1765164115976,1e-08,91350.0,91349.0,0.64941327]
[1765164118975,1e-08,91350.0,91349.0,0.49013427]
[1765164119179,1e-08,91350.0,91349.0,0.41033128]
[1765164119406,1e-08,91350.0,91349.0,0.40541928]
[1765164119605,1e-08,91350.0,91349.0,0.42761128]
[1765164120384,1e-08,91350.0,91349.0,0.65141928]
[1765164120772,1e-08,91350.0,91349.0,0.60236928]
[1765164120951,1e-08,91350.0,91349.0,0.42761128]
[1765164121157,1e-08,91350.0,91349.0,0.01011721]
[1765164121473,0.00150304,91350.0,91349.0,0.01011721]
[1765164121680,0.00150304,91350.0,91349.0,0.07140921]
[1765164122382,0.00150304,91350.0,91349.0,0.06140921]
[1765164122761,1e-08,91350.0,91349.0,0.06240921]
[1765164122962,1e-08,91350.0,91349.0,0.07960019]
[1765164123195,1e-08,91350.0,91349.0,0.06240921]
[1765164123646,1e-08,91350.0,91349.0,0.06840921]
[1765164125420,1e-08,91350.0,91349.0,0.02930921]
[1765164125756,1e-08,91350.0,91349.0,0.00711721]
[1765164125905,0.00150304,91350.0,91349.0,0.00711721]
[1765164126326,0.00150304,91350.0,91349.0,0.02930921]
[1765164127084,0.00150304,91350.0,91349.0,0.04528921]
[1765164127611,0.00150304,91350.0,91349.0,0.06840921]
[1765164128252,0.00150304,91350.0,91349.0,0.00711721]
[1765164129575,0.01756304,91350.0,91349.0,0.00711721]
[1765164129725,0.04275304,91350.0,91349.0,0.00711721]
[1765164135024,0.04275304,91350.0,91349.0,0.00611721]
[1765164135382,0.05175304,91350.0,91349.0,0.00611721]
[1765164135978,0.05175304,91350.0,91349.0,0.00011721]
[1765164142383,0.01050304,91350.0,91349.0,0.03962721]
[1765164142545,0.00900001,91350.0,91349.0,0.25856775]
[1765164142753,0.00900001,91350.0,91349.0,0.28075975]
[1765164143859,1e-08,91350.0,91349.0,0.28075975]
[1765164144066,1e-08,91350.0,91349.0,0.28675975]
[1765164144375,0.00900001,91350.0,91349.0,0.28075975]
[1765164144575,0.00900001,91350.0,91349.0,0.28875975]
[1765164144779,1e-08,91350.0,91349.0,0.28875975]
[1765164145187,1e-08,91350.0,91349.0,0.29075975]
[1765164147336,1e-08,91350.0,91349.0,0.28275975]
[1765164147542,1e-08,91350.0,91349.0,0.28075975]
[1765164147814,1e-08,91350.0,91349.0,0.28275975]
[1765164148220,1e-08,91350.0,91349.0,0.28875975]
[1765164148624,1e-08,91350.0,91349.0,0.67628274]
[1765164148774,1e-08,91350.0,91349.0,0.90540174]
[1765164148977,1e-08,91350.0,91349.0,0.90340174]
[1765164149379,1e-08,91350.0,91349.0,0.89540174]
[1765164149784,1e-08,91350.0,91349.0,0.90340174]
[1765164150581,1e-08,91350.0,91349.0,0.90540174]
[1765164151638,1e-08,91350.0,91349.0,0.90340174]
[1765164151822,1e-08,91350.0,91349.0,0.90540174]
[1765164152427,1e-08,91350.0,91349.0,0.89540174]
[1765164152898,1e-08,91350.0,91349.0,0.90440174]
[1765164153096,1e-08,91350.0,91349.0,0.89540174]
[1765164153316,1e-08,91350.0,91349.0,0.90740174]
[1765164153702,1e-08,91350.0,91349.0,0.91040174]
[1765164154238,1e-08,91350.0,91349.0,0.89540174]
[1765164154409,1e-08,91350.0,91349.0,0.90940174]
[1765164155865,1e-08,91350.0,91349.0,0.91378303]
[1765164158335,1e-08,91350.0,91349.0,0.67537074]
[1765164158648,1e-08,91350.0,91349.0,0.61284775]
[1765164159210,1e-08,91350.0,91349.0,0.68656274]
[1765164159633,1e-08,91350.0,91349.0,0.69056274]
[1765164159833,1e-08,91350.0,91349.0,0.63003975]
[1765164160012,1e-08,91350.0,91349.0,0.30703975]
[1765164160223,1e-08,91350.0,91349.0,0.31403975]
[1765164160467,1e-08,91350.0,91349.0,0.31203975]
[1765164160655,1e-08,91350.0,91349.0,0.31303975]
[1765164163187,1e-08,91350.0,91349.0,0.01511721]
[1765164163500,0.00150304,91350.0,91349.0,0.01511721]
[1765164163891,0.00150304,91350.0,91349.0,0.01411721]
[1765164164271,0.00150304,91350.0,91349.0,0.01511721]
[1765164164466,0.00150304,91350.0,91349.0,0.07585921]
[1765164164851,0.00150304,91350.0,91349.0,0.06185921]
[1765164165228,0.00150304,91350.0,91349.0,0.06685921]
[1765164168572,0.00150304,91350.0,91349.0,0.04348921]
[1765164169210,0.00150304,91350.0,91349.0,0.02129721]
[1765164169415,0.00150304,91350.0,91349.0,0.04348921]
[1765164169629,0.04009304,91350.0,91349.0,0.00611721]
[1765164169836,0.01670304,91350.0,91349.0,0.00611721]
[1765164170175,0.00150304,91350.0,91349.0,0.00611721]
[1765164172445,0.04009304,91350.0,91349.0,0.00611721]
[1765164176292,0.00150304,91350.0,91349.0,0.00611721]
[1765164180089,0.01774304,91350.0,91349.0,0.00611721]
[1765164180727,0.04169304,91350.0,91349.0,0.00611721]
[1765164181109,0.00150304,91350.0,91349.0,0.04694721]
[1765164181390,0.00150304,91350.0,91349.0,0.28807975]
[1765164182532,0.00150304,91350.0,91349.0,0.02830921]
[1765164182901,0.00150304,91350.0,91349.0,0.00611721]
[1765164183710,1e-08,91350.0,91349.0,0.04694721]
[1765164183945,1e-08,91350.0,91349.0,1.09120146]
[1765164184123,1e-08,91350.0,91349.0,0.95975861]
[1765164184557,1e-08,91350.0,91349.0,0.95875861]
[1765164184962,1e-08,91350.0,91349.0,0.95675861]
[1765164185383,1e-08,91350.0,91349.0,0.96575861]
[1765164185796,1e-08,91350.0,91349.0,0.96875861]
[1765164186830,1e-08,91350.0,91349.0,0.71082761]
[1765164187464,1e-08,91350.0,91349.0,0.68863561]
[1765164187673,1e-08,91350.0,91349.0,0.61111262]
[1765164187817,1e-08,91350.0,91349.0,0.63330462]
[1765164188019,1e-08,91350.0,91349.0,0.64330462]
[1765164188236,1e-08,91350.0,91349.0,0.66058462]
[1765164189038,1e-08,91350.0,91349.0,0.63235975]
[1765164189364,1e-08,91350.0,91349.0,0.64330557]
[1765164189582,1e-08,91350.0,91349.0,0.62111357]
[1765164189765,1e-08,91350.0,91349.0,0.64330557]
[1765164190818,1e-08,91350.0,91349.0,0.70582856]
[1765164191050,1e-08,91350.0,91349.0,1.39315358]
[1765164191257,1e-08,91350.0,91349.0,1.37351456]
[1765164191665,1e-08,91350.0,91349.0,1.38151456]
[1765164191868,1e-08,91350.0,91349.0,1.37451456]
[1765164192076,1e-08,91350.0,91349.0,1.37351456]
[1765164192285,1e-08,91350.0,91349.0,1.39115358]
[1765164192486,1e-08,91350.0,91349.0,1.38351456]
[1765164193303,1e-08,91350.0,91349.0,1.37551456]
[1765164193658,1e-08,91350.0,91349.0,1.38551456]
[1765164193854,1e-08,91350.0,91349.0,1.38851456]
[1765164194994,1e-08,91350.0,91349.0,0.97567756]
[1765164195299,1e-08,91350.0,91349.0,0.95218656]
[1765164196500,1e-08,91350.0,91349.0,0.69882856]
[1765164196658,1e-08,91350.0,91349.0,0.70882856]
[1765164196865,1e-08,91350.0,91349.0,0.85894256]
[1765164197069,1e-08,91350.0,91349.0,0.85594256]
[1765164197267,1e-08,91350.0,91349.0,0.84017156]
[1765164197474,1e-08,91350.0,91349.0,0.84217156]
[1765164198899,1e-08,91350.0,91349.0,0.70782856]
[1765164199119,1e-08,91350.0,91349.0,0.64530557]
[1765164200210,1e-08,91350.0,91349.0,0.01211721]
[1765164200528,1e-08,91350.0,91349.0,0.00011721]
[1765164200698,1e-08,91350.0,91349.0,0.04178721]
[1765164201252,1e-08,91350.0,91349.0,0.04078721]
[1765164201450,1e-08,91350.0,91349.0,0.06797921]
[1765164202026,1e-08,91350.0,91349.0,0.06897921]
[1765164202436,1e-08,91350.0,91349.0,0.08625921]
[1765164202634,1e-08,91350.0,91349.0,0.08125921]
[1765164202841,1e-08,91350.0,91349.0,0.08825921]
[1765164203275,1e-08,91350.0,91349.0,0.08025921]
[1765164203640,1e-08,91350.0,91349.0,0.08125921]
[1765164204152,1e-08,91350.0,91349.0,0.09125921]
[1765164204582,1e-08,91350.0,91349.0,0.09425921]
[1765164205762,1e-08,91350.0,91349.0,0.08325921]
[1765164206168,1e-08,91350.0,91349.0,0.08725921]
[1765164206577,1e-08,91350.0,91349.0,0.08825921]
[1765164207939,1e-08,91350.0,91349.0,0.00811721]
[1765164208327,0.00150304,91350.0,91349.0,0.00811721]
[1765164208868,0.00150304,91350.0,91349.0,0.00111721]
[1765164209280,0.00150304,91350.0,91349.0,0.00511721]
[1765164209637,0.00150304,91350.0,91349.0,0.00611721]
[1765164211560,0.00150304,91350.0,91349.0,0.06897921]
[1765164211969,1e-08,91350.0,91349.0,0.06897921]
[1765164218288,0.00150304,91350.0,91349.0,0.00611721]
[1765164218496,0.04163304,91350.0,91349.0,0.00611721]
[1765164218915,0.01802304,91350.0,91349.0,0.00611721]
[1765164220504,0.00150304,91350.0,91349.0,0.00611721]
[1765164220701,0.00150304,91350.0,91349.0,0.04678721]
[1765164220944,0.00150304,91350.0,91349.0,0.06897921]
[1765164221166,0.00150304,91350.0,91349.0,0.04678721]
[1765164221303,0.00150304,91350.0,91349.0,0.06897921]
[1765164224113,0.00150304,91350.0,91349.0,0.00611721]
[1765164224291,0.00150304,91350.0,91349.0,0.26583775]
[1765164224470,0.00150304,91350.0,91349.0,0.28802975]
[1765164224674,1e-08,91350.0,91349.0,0.28802975]
[1765164233061,1e-08,91350.0,91349.0,0.04689721]
[1765164234099,1e-08,91350.0,91349.0,0.06879126]
[1765164234341,1e-08,91350.0,91349.0,0.09098326]
[1765164234742,1e-08,91350.0,91349.0,0.41398326]
[1765164234865,1e-08,91350.0,91349.0,0.39208921]
[1765164235066,1e-08,91350.0,91349.0,0.40303408]
[1765164243671,1e-08,91350.0,91349.0,0.05784208]
[1765164244057,1e-08,91350.0,91349.0,0.07512208]
[1765164244499,1e-08,91350.0,91349.0,0.09731408]
[1765164250312,1e-08,91350.0,91349.0,0.03434208]
[1765164250514,1e-08,91350.0,91349.0,0.02339721]
[1765164253484,1e-08,91350.0,91349.0,0.00611721]
[1765164255093,1e-08,91350.0,91349.0,0.02114721]
[1765164255308,1e-08,91350.0,91349.0,0.04447721]
[1765164255523,1e-08,91350.0,91349.0,0.06666921]
[1765164260084,1e-08,91350.0,91349.0,0.00611721]
[1765164261287,1e-08,91350.0,91349.0,0.04447721]
[1765164261499,0.01094666,91352.0,91350.0,0.00278139]
[1765164261672,0.01094666,91352.0,91350.0,0.02611139]
[1765164262017,0.01094666,91352.0,91351.0,0.01503]
[1765164263310,0.01094642,91354.0,91351.0,0.01503]
[1765164263474,0.0109463,91355.0,91353.0,0.02753]
[1765164264557,0.0109463,91355.0,91354.0,0.01503]
[1765164264761,0.01094618,91356.0,91354.0,0.01503]
[1765164264956,0.22987065,91356.0,91354.0,0.01503]
[1765164265363,0.01094618,91356.0,91354.0,0.01503]
[1765164265695,0.22987007,91356.0,91354.0,0.01503]
[1765164266247,0.22987007,91356.0,91354.0,0.03836]
[1765164266248,0.23687007,91356.0,91354.0,0.03836]
[1765164267057,0.23687007,91356.0,91354.0,0.01503]
[1765164268303,0.23687007,91356.0,91353.0,0.0125]
[1765164269318,0.22987007,91356.0,91353.0,0.0125]
[1765164269547,0.23687007,91356.0,91353.0,0.0125]
[1765164269963,0.23687007,91356.0,91353.0,0.03583]
[1765164270692,0.21892856,91354.0,91353.0,0.03583]
[1765164270842,0.21892856,91354.0,91353.0,0.0125]
[1765164271775,0.22492856,91354.0,91353.0,0.0125]
[1765164272549,0.21893548,91352.0,91350.0,0.00278139]
[1765164273169,0.006,91354.0,91351.0,0.04930678]
[1765164273384,0.01094618,91356.0,91353.0,0.02597654]
[1765164273579,0.2313739,91356.0,91354.0,0.022192]
[1765164274072,0.01244921,91356.0,91354.0,0.022192]
[1765164274262,0.01244921,91356.0,91354.0,0.045522]
[1765164275062,0.00150303,91356.0,91355.0,0.03836]
[1765164276841,0.00150303,91356.0,91355.0,0.04236]
[1765164277958,0.00150303,91356.0,91355.0,0.004]
[1765164278156,0.01200303,91356.0,91355.0,0.004]
[1765164278563,0.00150303,91356.0,91355.0,0.004]
[1765164283775,0.00150303,91356.0,91355.0,0.04258]
[1765164283991,0.00150303,91356.0,91355.0,0.064772]
[1765164284943,0.00150303,91356.0,91355.0,0.026192]
[1765164285482,0.00150303,91356.0,91355.0,0.042102]
[1765164285683,0.00023449,91358.0,91355.0,0.29464218]
[1765164285886,0.00023449,91358.0,91357.0,0.038102]
[1765164286289,0.00023449,91358.0,91357.0,0.060772]
[1765164287049,0.00323449,91358.0,91357.0,0.060772]
[1765164287732,0.00023449,91358.0,91357.0,0.060772]
[1765164287931,0.00623449,91358.0,91357.0,0.060772]
[1765164289538,0.00623449,91358.0,91357.0,0.03858]
[1765164289749,0.00623449,91358.0,91357.0,0.060772]
[1765164289953,0.00623449,91358.0,91357.0,0.03858]
[1765164291527,0.00623449,91358.0,91357.0,0.060772]
[1765164292339,0.00623449,91358.0,91357.0,0.068772]
[1765164292702,0.00623449,91358.0,91357.0,0.04658]
[1765164292908,0.00023449,91358.0,91357.0,0.008]
[1765164293186,0.00023449,91358.0,91357.0,0.070772]
[1765164294111,0.00023449,91358.0,91357.0,0.062772]
[1765164294262,0.00023449,91358.0,91357.0,0.060772]
[1765164294466,0.00023449,91358.0,91357.0,0.066772]
[1765164295077,0.00023449,91358.0,91357.0,0.077642]
[1765164296067,0.00023449,91358.0,91357.0,0.08858663]
[1765164299575,0.00023449,91358.0,91357.0,0.45191762]
[1765164299820,0.00023449,91358.0,91357.0,0.67446094]
[1765164300019,0.00023449,91358.0,91357.0,0.67112362]
[1765164300381,0.00023449,91358.0,91357.0,0.67012362]
[1765164300747,0.00023449,91358.0,91357.0,0.59901562]
[1765164300956,0.00023449,91358.0,91357.0,0.60001562]
[1765164301136,0.00023449,91358.0,91357.0,0.59501562]
[1765164301466,0.00023449,91358.0,91357.0,0.59401562]
[1765164301686,0.00023449,91358.0,91357.0,0.60301562]
[1765164302822,0.00023449,91358.0,91357.0,0.60401562]
[1765164303024,0.00023449,91358.0,91357.0,0.6823699]
[1765164303199,0.00023449,91358.0,91357.0,0.61069026]
[1765164303544,0.00023449,91358.0,91357.0,0.60969026]
[1765164303745,0.00023449,91358.0,91357.0,0.60369026]
[1765164304147,0.00023449,91358.0,91357.0,0.61969026]
[1765164308815,0.0002,91370.0,91369.0,2.62660761]
[1765164309022,0.0002,91370.0,91369.0,2.66953761]
[1765164309230,0.0002,91370.0,91369.0,2.69280761]
[1765164309434,0.0002,91370.0,91369.0,2.72565622]
[1765164310542,0.0002,91370.0,91369.0,2.72965622]
[1765164310925,0.0002,91370.0,91369.0,2.74765622]
[1765164311764,0.0002,91370.0,91369.0,2.82574765]
[1765164312357,0.0002,91370.0,91369.0,2.74765622]
[1765164313066,0.0002,91370.0,91369.0,0.59970623]
[1765164313191,0.0002,91370.0,91369.0,0.93998623]
[1765164313404,0.0002,91370.0,91369.0,1.00250922]
[1765164313600,0.0002,91370.0,91369.0,0.57539323]
[1765164313816,0.0002,91370.0,91369.0,0.36213323]
[1765164314007,0.0002,91370.0,91369.0,0.80700523]
[1765164314218,0.0002,91370.0,91369.0,0.78900523]
[1765164314430,0.00055167,91370.0,91369.0,0.86552822]
[1765164314705,0.00055167,91370.0,91369.0,0.852907]
[1765164314961,0.00055167,91370.0,91369.0,0.84952822]
[1765164315170,0.00055167,91370.0,91369.0,0.85952822]
[1765164315430,0.00055167,91370.0,91369.0,0.85752822]
[1765164315895,0.00055167,91370.0,91369.0,0.85952822]
[1765164316389,0.00055167,91370.0,91369.0,0.852907]
[1765164316618,0.00055167,91370.0,91369.0,0.872907]
[1765164317332,0.00055167,91370.0,91369.0,0.855907]
[1765164317851,0.0002,91390.0,91387.0,0.2188495]
[1765164318081,0.0002,91390.0,91387.0,2.66669449]
[1765164318310,0.0002,91390.0,91387.0,2.10224549]
[1765164319027,0.0002,91390.0,91387.0,2.1023627]
[1765164319243,0.0002,91390.0,91387.0,1.4864777]
[1765164319742,0.0002,91390.0,91387.0,1.5064777]
[1765164323320,1.00052736,91388.0,91387.0,1.53931844]
[1765164324004,1.00052736,91388.0,91387.0,1.54539032]
[1765164325186,1.00052736,91388.0,91387.0,1.53931844]
[1765164326094,1.00052736,91388.0,91387.0,1.24084944]
[1765164326331,1.00052736,91388.0,91387.0,1.11529744]
[1765164326595,1.00052736,91388.0,91387.0,1.10286544]
[1765164326830,1.00052736,91388.0,91387.0,1.08506844]
[1765164327062,1.00052736,91388.0,91387.0,0.65071244]
[1765164327294,1.00052736,91388.0,91387.0,0.93926344]
[1765164327515,1.00052736,91388.0,91387.0,0.92226344]
[1765164327715,1.00052736,91388.0,91387.0,0.91926344]
[1765164328175,1.00052736,91388.0,91387.0,0.92126344]
[1765164329099,1.00052736,91388.0,91387.0,0.93426344]
[1765164329452,1.00052736,91388.0,91387.0,0.89737017]
[1765164329677,1.00052736,91388.0,91387.0,0.83890044]
[1765164330710,1.00052736,91388.0,91387.0,0.41489244]
[1765164331142,1.00052736,91388.0,91387.0,0.73789244]
[1765164331446,1.00052736,91388.0,91387.0,0.85050844]
[1765164331648,1.00052736,91388.0,91387.0,0.73789244]
[1765164334853,1.00052736,91388.0,91387.0,0.65808945]
[1765164335081,1.00052736,91388.0,91387.0,0.62993745]
[1765164335630,1.00052736,91388.0,91387.0,0.42132795]
[1765164335864,1.00052736,91388.0,91387.0,0.41932795]
[1765164336061,1.00052736,91388.0,91387.0,0.42832795]
[1765164336262,1.00052736,91388.0,91387.0,0.41932795]
[1765164336684,1.00052736,91388.0,91387.0,0.42632795]
[1765164336842,1.00052736,91388.0,91387.0,0.44851995]
[1765164337505,1.00052736,91388.0,91387.0,0.40308795]
[1765164337842,1.00052736,91388.0,91387.0,0.03995795]
[1765164338082,1.00203039,91388.0,91387.0,0.00711721]
[1765164338311,1.04170039,91388.0,91387.0,0.00711721]
[1765164339248,1.04770039,91388.0,91387.0,0.00711721]
[1765164339444,1.04770039,91388.0,91387.0,0.00011721]
[1765164357118,1.00803039,91388.0,91387.0,0.00011721]
[1765164358701,1.00803039,91388.0,91387.0,0.03919721]
[1765164359722,1.00652736,91388.0,91387.0,0.06138921]
[1765164360116,1.00052736,91388.0,91387.0,0.06138921]
[1765164360259,1.00052736,91388.0,91387.0,0.06638921]
[1765164360459,1.00152736,91388.0,91387.0,0.06638921]
[1765164360870,1.00052736,91388.0,91387.0,0.06638921]
[1765164361116,1.00052736,91388.0,91387.0,0.06138921]
[1765164361320,1.00052736,91388.0,91387.0,0.06238921]
[1765164361524,1.04097736,91388.0,91387.0,0.00911721]
[1765164361729,1.00052736,91388.0,91387.0,0.00911721]
[1765164361899,1.00052736,91388.0,91387.0,0.04819721]
[1765164362330,1.00052736,91388.0,91387.0,0.06238921]
[1765164362923,1.00052736,91388.0,91387.0,0.04019721]
[1765164363124,1.00052736,91388.0,91387.0,0.06138921]
[1765164363549,1.00052736,91388.0,91387.0,0.07138921]
[1765164363873,1.00652736,91388.0,91387.0,0.06138921]
[1765164364009,1.00052736,91388.0,91387.0,0.06138921]
[1765164364379,1.00152736,91388.0,91387.0,0.06138921]
[1765164364710,1.00152736,91388.0,91387.0,0.06938921]
[1765164364910,1.00052736,91388.0,91387.0,0.06938921]
[1765164365412,1.00052736,91388.0,91387.0,0.4549122]
[1765164365618,1.00052736,91388.0,91387.0,0.7636822]
[1765164366521,1.00052736,91388.0,91387.0,0.7556822]
[1765164366729,1.00052736,91388.0,91387.0,0.7566822]
[1765164366917,1.00052736,91388.0,91387.0,0.7666822]
[1765164372035,1.00052736,91388.0,91387.0,0.4579122]
[1765164372276,1.00052736,91388.0,91387.0,0.6273722]
[1765164372513,1.00052736,91388.0,91387.0,0.1300002]
[1765164372738,1.00052736,91388.0,91387.0,0.06647721]
[1765164372923,1.00052736,91388.0,91387.0,0.01011721]
[1765164373116,1.00052736,91388.0,91387.0,0.01111721]
[1765164373333,1.00052736,91388.0,91387.0,0.00111721]
[1765164373553,1.01803039,91388.0,91387.0,0.01011721]
[1765164373753,1.04198039,91388.0,91387.0,0.00011721]
[1765164374100,1.00203039,91388.0,91387.0,0.02238721]
[1765164374304,1.01803039,91388.0,91387.0,0.00711721]
[1765164374534,1.04198039,91388.0,91387.0,0.00711721]
[1765164374934,1.04198039,91388.0,91387.0,0.00011721]
[1765164375755,1.04898039,91388.0,91387.0,0.00011721]
[1765164376178,1.04198039,91388.0,91387.0,0.00011721]
[1765164376593,1.04898039,91388.0,91387.0,0.00011721]
[1765164379194,1.06626039,91388.0,91387.0,0.00011721]
[1765164379410,1.45462046,91388.0,91387.0,0.00011721]
[1765164379621,1.38926039,91388.0,91387.0,0.00011721]
[1765164380240,1.38226039,91388.0,91387.0,0.00011721]
[1765164380664,1.40445638,91388.0,91387.0,0.00011721]
[1765164380861,1.38226039,91388.0,91387.0,0.00011721]
[1765164381137,1.40445638,91388.0,91387.0,0.00011721]
[1765164381538,1.41245638,91388.0,91387.0,0.00011721]
[1765164382552,1.46095024,91388.0,91387.0,0.00011721]
[1765164382911,1.41245638,91388.0,91387.0,0.00011721]
[1765164388529,0.21892856,91354.0,91353.0,0.01728]
[1765164388777,0.21892856,91354.0,91353.0,0.01739724]
[1765164389127,0.01094523,91364.0,91361.0,0.022192]
[1765164389329,0.01094523,91364.0,91361.0,0.044722]
[1765164389845,0.01094523,91364.0,91361.0,0.022192]
[1765164391190,0.01094523,91364.0,91361.0,0.031192]
[1765164391387,0.01094523,91364.0,91361.0,0.009]
[1765164391608,0.01194523,91364.0,91361.0,0.009]
[1765164392453,0.001,91364.0,91363.0,0.01527]
[1765164392608,0.001,91364.0,91363.0,0.037462]
[1765164392776,0.001,91364.0,91363.0,0.0378]
[1765164392984,0.001,91364.0,91363.0,0.059992]
[1765164393382,0.01094487,91367.0,91366.0,0.022192]
[1765164393695,0.22984228,91367.0,91366.0,0.022192]
[1765164394125,0.01094499,91366.0,91364.0,0.022192]
[1765164394323,0.01094511,91365.0,91361.0,0.01094558]
[1765164394738,0.01094523,91364.0,91361.0,0.03347558]
[1765164395294,0.01094499,91366.0,91363.0,0.01527]
[1765164395933,0.01094534,91363.0,91360.0,0.0447657]
[1765164396281,0.2298531,91363.0,91361.0,0.022192]
[1765164397444,0.2318531,91363.0,91361.0,0.057192]
[1765164399138,0.2318531,91363.0,91361.0,0.035]
[1765164399422,0.002,91363.0,91361.0,0.057192]
[1765164400123,0.002,91363.0,91362.0,0.0378]
[1765164401115,0.002,91363.0,91362.0,0.0388]
[1765164401888,0.01094511,91365.0,91362.0,0.0388]
[1765164402087,0.01094499,91366.0,91362.0,0.04974546]
[1765164402324,0.002,91363.0,91362.0,0.06121546]
[1765164402737,0.002,91363.0,91362.0,0.04927]
[1765164402938,0.002,91363.0,91362.0,0.034]
[1765164403713,0.002,91363.0,91362.0,0.035]
[1765164405063,0.002,91363.0,91362.0,0.26967939]
[1765164405365,0.002,91363.0,91362.0,0.29275939]
[1765164406578,0.002,91363.0,91362.0,0.07385]
[1765164406732,0.002,91363.0,91362.0,0.035]
[1765164406733,0.05284,91363.0,91362.0,0.035]
[1765164411308,0.14922975,91363.0,91362.0,0.035]
[1765164411699,0.07503599,91363.0,91362.0,0.035]
[1765164411937,0.07503599,91363.0,91362.0,0.034]
[1765164412091,0.01094618,91356.0,91353.0,0.00011724]
[1765164412290,0.01556,91354.0,91353.0,0.00011724]
[1765164412710,0.04034,91354.0,91353.0,0.00011724]
[1765164413654,0.04334,91354.0,91353.0,0.03511724]
[1765164413798,0.04334,91354.0,91353.0,0.03611724]
[1765164414237,0.01856,91354.0,91353.0,0.03611724]
[1765164414439,0.003,91354.0,91353.0,0.03611724]
[1765164416881,0.04334,91354.0,91353.0,0.03611724]
[1765164420637,0.05976207,91354.0,91353.0,0.03611724]